fUSD/lending_fUSD_20240324
["ID","MTS","AMOUNT","RATE_DAILY","PERIOD"]
[320312216,1711284642569,-664.24,0.00019598,2]
[320312217,1711284642578,-500.0,0.00019598,2]
[320312218,1711284642587,-500.0,0.00019598,2]
[320312219,1711284642597,-500.0,0.00019598,2]
[320312220,1711284642607,-1031.24,0.00019598,2]
[320312221,1711284642616,-500.0,0.00019598,2]
[320312222,1711284642625,-2507.57,0.00019598,2]
[320312223,1711284642635,-2119.26,0.00019598,2]
[320312224,1711284642643,-500.0,0.00019598,2]
[320312225,1711284642652,-1160.52,0.00019598,2]
[320312226,1711284642662,-500.0,0.00019598,2]
[320312227,1711284642671,-906.2,0.00019598,2]
[320312228,1711284642682,-3303.08,0.00019598,2]
[320312229,1711284642692,-500.0,0.00019598,2]
[320312231,1711284642701,-808.41,0.00019598,2]
[320312233,1711284642710,-500.0,0.00019598,2]
[320312235,1711284642720,-500.0,0.00019598,2]
[320312237,1711284642729,-551.23,0.00019598,2]
[320312239,1711284642738,-500.0,0.00019598,2]
[320312241,1711284642747,-500.0,0.00019598,2]
[320312243,1711284642757,-1614.89,0.00019598,2]
[320312244,1711284642766,-1034.81,0.00019598,2]
[320312245,1711284642776,-1047.44,0.00019598,2]
[320312246,1711284642785,-500.0,0.00019598,2]
[320312247,1711284642794,-522.78,0.00019598,2]
[320312248,1711284642803,-678.98,0.00019598,2]
[320312249,1711284642813,-500.0,0.00019598,2]
[320312250,1711284642824,-904.0,0.00019598,2]
[320312251,1711284642833,-639.42,0.00019598,2]
[320312252,1711284642843,-500.0,0.00019598,2]
[320312253,1711284642853,-500.0,0.00019599,2]
[320312254,1711284642863,-500.0,0.00019599,2]
[320312255,1711284642872,-500.0,0.00019599,2]
[320312256,1711284642881,-500.0,0.00019599,2]
[320312257,1711284642890,-278.56108199,0.00019599,2]
[320312258,1711284642899,-500.0,0.00019599,2]
[320312259,1711284642908,-500.0,0.00019599,2]
[320312260,1711284642917,-500.0,0.00019599,2]
[320312261,1711284642927,-500.0,0.00019599,2]
[320312262,1711284642936,-500.0,0.00019599,2]
[320312263,1711284642946,-500.0,0.00019599,2]
[320312264,1711284642957,-500.0,0.00019599,2]
[320312265,1711284642966,-500.0,0.00019599,2]
[320312266,1711284642976,-500.0,0.00019599,2]
[320312267,1711284642985,-500.0,0.00019599,2]
[320312268,1711284642993,-500.0,0.00019599,2]
[320312269,1711284643004,-500.0,0.00019599,2]
[320312270,1711284643013,-500.0,0.00019599,2]
[320312271,1711284643023,-500.0,0.00019599,2]
[320312272,1711284643032,-500.0,0.00019599,2]
[320312273,1711284643042,-500.0,0.00019599,2]
[320312274,1711284643052,-500.0,0.00019599,2]
[320312275,1711284643061,-500.0,0.00019599,2]
[320312276,1711284643069,-500.0,0.00019599,2]
[320312277,1711284643079,-500.0,0.00019599,2]
[320312278,1711284643088,-500.0,0.00019599,2]
[320312279,1711284643097,-500.0,0.00019599,2]
[320312280,1711284643106,-500.0,0.00019599,2]
[320312281,1711284643115,-500.0,0.00019599,2]
[320312282,1711284643124,-500.0,0.00019599,2]
[320312283,1711284643133,-500.0,0.00019599,2]
[320312284,1711284643143,-500.0,0.00019599,2]
[320312285,1711284643153,-500.0,0.00019599,2]
[320312286,1711284643163,-500.0,0.00019599,2]
[320312287,1711284643172,-500.0,0.00019599,2]
[320312288,1711284643182,-500.0,0.00019599,2]
[320312289,1711284643191,-500.0,0.00019599,2]
[320312290,1711284643201,-500.0,0.00019599,2]
[320312291,1711284643210,-500.0,0.00019599,2]
[320312292,1711284643220,-170.98191622,0.00019599,2]
[320312293,1711284643229,-150.0,0.00019599,2]
[320312294,1711284643238,-500.0,0.00019599,2]
[320312295,1711284643247,-500.0,0.00019599,2]
[320312296,1711284643256,-462.67,0.00019599,2]
[320312297,1711284643265,-654.2,0.00019599,2]
[320312298,1711284643274,-500.0,0.00019599,2]
[320312299,1711284643283,-500.0,0.00019599,2]
[320312300,1711284643293,-500.0,0.00019599,2]
[320312301,1711284643302,-507.62341633,0.00019599,2]
[320312303,1711284643311,-500.0,0.00019599,2]
[320312304,1711284643320,-635.69,0.00019599,2]
[320312306,1711284643329,-500.0,0.00019599,2]
[320312308,1711284643339,-500.0,0.00019599,2]
[320312311,1711284643351,-367.37,0.00019599,2]
[320312312,1711284643361,-500.0,0.00019599,2]
[320312314,1711284643370,-500.0,0.00019599,2]
[320312316,1711284643379,-619.16,0.00019599,2]
[320312319,1711284643389,-500.0,0.00019599,2]
[320312320,1711284643399,-500.0,0.00019599,2]
[320312321,1711284643407,-500.0,0.00019599,2]
[320312322,1711284643417,-500.0,0.00019599,2]
[320312323,1711284643428,-500.0,0.00019599,2]
[320312324,1711284643437,-500.0,0.00019599,2]
[320312325,1711284643446,-500.0,0.00019599,2]
[320312326,1711284643455,-260.82,0.00019599,2]
[320312327,1711284643464,-500.0,0.00019599,2]
[320312328,1711284643473,-500.0,0.00019599,2]
[320312329,1711284643482,-500.0,0.00019599,2]
[320312330,1711284643490,-500.0,0.00019599,2]
[320312331,1711284643499,-500.0,0.00019599,2]
[320312332,1711284643509,-500.0,0.00019599,2]
[320312333,1711284643519,-500.0,0.00019599,2]
[320312334,1711284643528,-500.0,0.00019599,2]
[320312335,1711284643538,-500.0,0.00019599,2]
[320312336,1711284643547,-500.0,0.00019599,2]
[320312337,1711284643556,-500.0,0.00019599,2]
[320312338,1711284643566,-500.0,0.00019599,2]
[320312339,1711284643575,-500.0,0.00019599,2]
[320312340,1711284643584,-500.0,0.00019599,2]
[320312341,1711284643593,-500.0,0.00019599,2]
[320312342,1711284643603,-500.0,0.00019599,2]
[320312343,1711284643613,-210.66266792,0.00019599,2]
[320312344,1711284643622,-500.0,0.00019599,2]
[320312345,1711284643631,-513.26,0.00019599,2]
[320312346,1711284643640,-500.0,0.00019599,2]
[320312347,1711284643649,-500.0,0.00019599,2]
[320312348,1711284643658,-500.0,0.00019599,2]
[320312349,1711284643668,-501.68,0.00019599,2]
[320312350,1711284643677,-500.0,0.00019599,2]
[320312351,1711284643687,-500.0,0.00019599,2]
[320312352,1711284643696,-500.0,0.00019599,2]
[320312353,1711284643705,-500.0,0.00019599,2]
[320312354,1711284643714,-500.0,0.00019599,2]
[320312355,1711284643723,-2732.22,0.00019599,2]
[320312356,1711284643732,-562.58,0.00019599,2]
[320312357,1711284643742,-500.0,0.00019599,2]
[320312358,1711284643751,-500.0,0.00019599,2]
[320312359,1711284643760,-500.0,0.00019599,2]
[320312360,1711284643769,-500.0,0.00019599,2]
[320312361,1711284643779,-543.59,0.00019599,2]
[320312362,1711284643788,-500.0,0.00019599,2]
[320312363,1711284643798,-500.0,0.00019599,2]
[320312364,1711284643807,-435.55,0.00019599,2]
[320312365,1711284643816,-500.0,0.00019599,2]
[320312366,1711284643825,-500.0,0.00019599,2]
[320312367,1711284643834,-500.0,0.00019599,2]
[320312368,1711284643843,-2509.64,0.00019599,2]
[320312369,1711284643852,-12150.65,0.00019599,2]
[320312370,1711284643862,-500.0,0.00019599,2]
[320312371,1711284643871,-500.0,0.00019599,2]
[320312372,1711284643881,-582.05,0.00019599,2]
[320312373,1711284643890,-500.0,0.00019599,2]
[320312374,1711284643899,-539.7,0.00019599,2]
[320312375,1711284643909,-618.87,0.00019599,2]
[320312376,1711284643918,-500.0,0.00019599,2]
[320312377,1711284643928,-500.0,0.00019599,2]
[320312378,1711284643937,-4611.61,0.00019599,2]
[320312379,1711284643946,-500.0,0.00019599,2]
[320312380,1711284643955,-500.0,0.00019599,2]
[320312381,1711284643965,-211.81815333,0.00019599,2]
[320312382,1711284643974,-500.0,0.00019599,2]
[320312383,1711284643983,-500.0,0.00019599,2]
[320312384,1711284643992,-500.0,0.00019599,2]
[320312385,1711284644002,-500.0,0.00019599,2]
[320312386,1711284644011,-500.0,0.00019599,2]
[320312387,1711284644023,-500.0,0.00019599,2]
[320312388,1711284644032,-299.44,0.00019599,2]
[320312389,1711284644041,-500.0,0.00019599,2]
[320312390,1711284644050,-500.0,0.00019599,2]
[320312391,1711284644058,-500.0,0.00019599,2]
[320312392,1711284644067,-1845.17,0.00019599,2]
[320312393,1711284644076,-500.0,0.00019599,2]
[320312394,1711284644086,-740.67,0.00019599,2]
[320312395,1711284644095,-564.95,0.00019599,2]
[320312396,1711284644104,-500.0,0.00019599,2]
[320312397,1711284644113,-500.0,0.00019599,2]
[320312398,1711284644122,-500.0,0.00019599,2]
[320312399,1711284644131,-500.0,0.00019599,2]
[320312400,1711284644140,-367.39151303,0.00019599,2]
[320312401,1711284644150,-500.0,0.00019599,2]
[320312402,1711284644158,-500.0,0.00019599,2]
[320312403,1711284644168,-500.0,0.00019599,2]
[320312404,1711284644177,-500.0,0.00019599,2]
[320312405,1711284644187,-500.0,0.00019599,2]
[320312406,1711284644196,-500.0,0.00019599,2]
[320312407,1711284644205,-500.0,0.00019599,2]
[320312408,1711284644215,-500.0,0.00019599,2]
[320312409,1711284644224,-585.98,0.00019599,2]
[320312410,1711284644233,-500.0,0.00019599,2]
[320312411,1711284644242,-500.0,0.00019599,2]
[320312412,1711284644251,-500.0,0.00019599,2]
[320312413,1711284644260,-500.0,0.00019599,2]
[320312414,1711284644269,-500.0,0.00019599,2]
[320312415,1711284644278,-500.0,0.00019599,2]
[320312416,1711284644288,-1229.1,0.00019599,2]
[320312417,1711284644297,-500.0,0.00019599,2]
[320312418,1711284644306,-500.0,0.00019599,2]
[320312419,1711284644316,-500.0,0.00019599,2]
[320312420,1711284644325,-1271.99,0.00019599,2]
[320312421,1711284644335,-1301.69,0.00019599,2]
[320312422,1711284644344,-500.0,0.00019599,2]
[320312423,1711284644355,-500.0,0.00019599,2]
[320312424,1711284644364,-500.0,0.00019599,2]
[320312425,1711284644373,-500.0,0.00019599,2]
[320312426,1711284644382,-500.0,0.00019599,2]
[320312427,1711284644391,-500.0,0.00019599,2]
[320312428,1711284644400,-500.0,0.00019599,2]
[320312429,1711284644409,-645.22,0.00019599,2]
[320312430,1711284644418,-500.0,0.00019599,2]
[320312431,1711284644427,-500.0,0.00019599,2]
[320312432,1711284644438,-500.0,0.00019599,2]
[320312433,1711284644447,-500.0,0.00019599,2]
[320312434,1711284644457,-500.0,0.00019599,2]
[320312435,1711284644467,-500.0,0.00019599,2]
[320312436,1711284644476,-534.39,0.00019599,2]
[320312437,1711284644485,-500.0,0.00019599,2]
[320312438,1711284644495,-500.0,0.00019599,2]
[320312439,1711284644504,-500.0,0.00019599,2]
[320312440,1711284644514,-500.0,0.00019599,2]
[320312441,1711284644523,-2574.82,0.00019599,2]
[320312442,1711284644532,-500.0,0.00019599,2]
[320312443,1711284644542,-503.17,0.00019599,2]
[320312444,1711284644551,-500.0,0.00019599,2]
[320312445,1711284644562,-500.0,0.00019599,2]
[320312446,1711284644571,-500.0,0.00019599,2]
[320312447,1711284644580,-500.0,0.00019599,2]
[320312448,1711284644590,-500.0,0.00019599,2]
[320312449,1711284644599,-1988.36,0.00019599,2]
[320312450,1711284644608,-500.0,0.00019599,2]
[320312451,1711284644617,-1250.82,0.00019599,2]
[320312452,1711284644626,-782.87,0.00019599,2]
[320312453,1711284644636,-500.0,0.00019599,2]
[320312454,1711284644647,-1629.0,0.00019599,2]
[320312455,1711284644657,-500.0,0.00019599,2]
[320312456,1711284644667,-500.0,0.00019599,2]
[320312457,1711284644676,-500.0,0.00019599,2]
[320312458,1711284644686,-500.0,0.00019599,2]
[320312459,1711284644696,-192.03638061,0.00019599,2]
[320312460,1711284644706,-500.0,0.00019599,2]
[320312461,1711284644716,-500.0,0.00019599,2]
[320312462,1711284644725,-508.32502607,0.00019599,2]
[320312463,1711284644734,-500.0,0.00019599,2]
[320312464,1711284644743,-1013.25,0.00019599,2]
[320312465,1711284644938,-500.0,0.00019599,2]
[320312466,1711284644948,-643.3,0.00019599,2]
[320312467,1711284644957,-500.0,0.00019599,2]
[320312468,1711284644966,-500.0,0.00019599,2]
[320312469,1711284644975,-500.0,0.00019599,2]
[320312470,1711284644985,-500.0,0.00019599,2]
[320312471,1711284644994,-881.38,0.00019599,2]
[320312472,1711284645002,-538.68,0.00019599,2]
[320312473,1711284645011,-500.0,0.00019599,2]
[320312474,1711284645022,-500.0,0.00019599,2]
[320312475,1711284645031,-500.0,0.00019599,2]
[320312476,1711284645040,-500.0,0.00019599,2]
[320312477,1711284645048,-8889.89,0.00019599,2]
[320312478,1711284645059,-500.0,0.00019599,2]
[320312479,1711284645068,-515.02422421,0.00019599,2]
[320312480,1711284645077,-1975.38,0.00019599,2]
[320312481,1711284645086,-500.0,0.00019599,2]
[320312482,1711284645095,-500.0,0.00019599,2]
[320312483,1711284645104,-500.0,0.00019599,2]
[320312484,1711284645113,-1261.61,0.00019599,2]
[320312485,1711284645122,-500.0,0.00019599,2]
[320312486,1711284645131,-500.0,0.00019599,2]
[320312487,1711284645140,-1393.46,0.00019599,2]
[320312488,1711284645149,-500.0,0.00019599,2]
[320312489,1711284645158,-519.4,0.00019599,2]
[320312490,1711284645168,-504.14565592,0.00019599,2]
[320312491,1711284645177,-500.0,0.00019599,2]
[320312492,1711284645186,-500.0,0.00019599,2]
[320312493,1711284645195,-2121.55,0.00019599,2]
[320312495,1711284645205,-500.0,0.00019599,2]
[320312497,1711284645214,-500.0,0.00019599,2]
[320312498,1711284645223,-2618.06,0.00019599,2]
[320312499,1711284645232,-177.86984336,0.00019599,2]
[320312500,1711284645242,-328.60122953,0.00019599,2]
[320312501,1711284645250,-500.0,0.00019599,2]
[320312502,1711284645260,-500.0,0.00019599,2]
[320312503,1711284645268,-1968.69,0.00019599,2]
[320312504,1711284645277,-988.57,0.00019599,2]
[320312505,1711284645286,-500.0,0.00019599,2]
[320312506,1711284645295,-500.0,0.00019599,2]
[320312507,1711284645304,-500.0,0.00019599,2]
[320312508,1711284645313,-500.0,0.00019599,2]
[320312509,1711284645322,-500.0,0.00019599,2]
[320312510,1711284645332,-500.0,0.00019599,2]
[320312511,1711284645342,-626.46,0.00019599,2]
[320312512,1711284645354,-500.0,0.00019599,2]
[320312513,1711284645363,-500.0,0.00019599,2]
[320312514,1711284645372,-1172.38,0.00019599,2]
[320312515,1711284645381,-500.0,0.00019599,2]
[320312516,1711284645390,-500.0,0.00019599,2]
[320312517,1711284645400,-500.0,0.00019599,2]
[320312518,1711284645409,-817.61,0.00019599,2]
[320312519,1711284645419,-500.0,0.00019599,2]
[320312520,1711284645430,-500.0,0.00019599,2]
[320312521,1711284645440,-1554.4,0.00019599,2]
[320312522,1711284645449,-500.0,0.00019599,2]
[320312523,1711284645458,-500.0,0.00019599,2]
[320312524,1711284645469,-500.0,0.00019599,2]
[320312525,1711284645478,-500.0,0.00019599,2]
[320312526,1711284645487,-500.0,0.00019599,2]
[320312527,1711284645496,-500.0,0.00019599,2]
[320312528,1711284645505,-500.0,0.00019599,2]
[320312529,1711284645514,-1361.16,0.00019599,2]
[320312530,1711284645524,-500.0,0.00019599,2]
[320312531,1711284645534,-226.71598819,0.00019599,2]
[320312532,1711284645543,-503.50522995,0.00019599,2]
[320312533,1711284645554,-1303.4,0.00019599,2]
[320312534,1711284645563,-500.0,0.00019599,2]
[320312535,1711284645572,-1450.89,0.00019599,2]
[320312536,1711284645581,-500.0,0.00019599,2]
[320312537,1711284645590,-233.25,0.00019599,2]
[320312538,1711284645600,-500.0,0.00019599,2]
[320312539,1711284645609,-500.0,0.00019599,2]
[320312540,1711284645618,-500.0,0.00019599,2]
[320312541,1711284645627,-500.0,0.00019599,2]
[320312542,1711284645636,-502.7442874,0.00019599,2]
[320312543,1711284645645,-500.0,0.00019599,2]
[320312544,1711284645654,-500.0,0.00019599,2]
[320312545,1711284645663,-500.0,0.00019599,2]
[320312546,1711284645672,-500.0,0.00019599,2]
[320312547,1711284645681,-500.0,0.00019599,2]
[320312548,1711284645690,-501.90191242,0.00019599,2]
[320312549,1711284645699,-500.0,0.00019599,2]
[320312550,1711284645707,-500.0,0.00019599,2]
[320312551,1711284645717,-500.0,0.00019599,2]
[320312552,1711284645726,-500.0,0.00019599,2]
[320312553,1711284645735,-500.0,0.00019599,2]
[320312554,1711284645746,-500.0,0.00019599,2]
[320312555,1711284645755,-500.0,0.00019599,2]
[320312556,1711284645764,-612.94687344,0.00019599,2]
[320312557,1711284645773,-500.0,0.00019599,2]
[320312558,1711284645783,-500.0,0.00019599,2]
[320312559,1711284645793,-500.0,0.00019599,2]
[320312560,1711284645802,-500.0,0.00019599,2]
[320312561,1711284645812,-4502.17,0.00019599,2]
[320312562,1711284645822,-2398.14,0.00019599,2]
[320312563,1711284645831,-500.0,0.00019599,2]
[320312564,1711284645841,-500.0,0.00019599,2]
[320312565,1711284645849,-332.85880172,0.00019599,2]
[320312566,1711284645859,-506.36130296,0.00019599,2]
[320312567,1711284645868,-694.32,0.00019599,2]
[320312568,1711284645877,-501.0,0.000196,2]
[320312569,1711284645886,-157.4320493,0.000196,2]
[320312570,1711284645895,-157.4320493,0.000196,2]
[320312571,1711284645905,-157.4320493,0.000196,2]
[320312572,1711284645914,-157.4320493,0.000196,2]
[320312573,1711284645923,-157.4320493,0.000196,2]
[320312574,1711284645935,-157.4320493,0.000196,2]
[320312575,1711284645944,-157.4320493,0.000196,2]
[320312576,1711284645953,-157.4320493,0.000196,2]
[320312577,1711284645962,-157.4320493,0.000196,2]
[320312578,1711284645971,-157.4320493,0.000196,2]
[320312579,1711284645981,-157.4320493,0.000196,2]
[320312580,1711284645990,-157.4320493,0.000196,2]
[320312581,1711284645999,-157.4320493,0.000196,2]
[320312582,1711284646008,-157.4320493,0.000196,2]
[320312583,1711284646018,-157.43204,0.000196,2]
[320312584,1711284646027,-337894.53601043,0.000196,2]
[320312585,1711284646046,-3632.04061363,0.000196,2]
[320312586,1711284646069,-500.0,0.00019599,2]
[320312587,1711284646078,-6061.1,0.000196,2]
[320312588,1711284646101,-4596.65466,0.000196,2]
[320312589,1711284646150,-1539.8956621,0.000196,2]
[320312590,1711284646618,-372.93853237,0.00019299,2]
[320312591,1711284646630,-831.54436763,0.00019299,2]
[320312592,1711284646639,-488693.96830943,0.000196,2]
[320312593,1711284646651,-3569.41012625,0.000196,2]
[320312594,1711284646662,-1188.35,0.000196,2]
[320312595,1711284646678,-298503.55638608,0.000196,2]
[320312596,1711284646690,-20531.40707473,0.000196,2]
[320312597,1711284646701,-19800.7361643,0.000196,2]
[320312598,1711284646712,-17300.0,0.000196,2]
[320312610,1711284651322,158.0,0.00017835,2]
[320312611,1711284654132,471.55714268,0.00017803,2]
[320312612,1711284654154,2000.0,0.00017803,2]
[320312613,1711284654175,530.14515732,0.00017803,2]
[320312614,1711284668572,159.0,0.00017835,2]
[320312615,1711284671411,157.0,0.00017835,2]
[320312617,1711284787554,322.46,0.00016475,2]
[320312618,1711284961786,163.84,0.00017808,2]
[320312619,1711285021580,667.55484268,0.00017788,2]
[320312620,1711285021606,1142.97515732,0.00017788,2]
[320312621,1711285075218,250.0,0.00017715,2]
[320312622,1711285122079,250.0,0.00017573,2]
[320312623,1711285141275,204.38,0.00017573,2]
[320312624,1711285152674,152.64484268,0.00017591,2]
[320312625,1711285152696,429.75515732,0.00017591,2]
[320312626,1711285156785,500.0,0.00017591,2]
[320312627,1711285207235,306.33,0.00015659,2]
[320312628,1711285215335,179.46,0.00017545,2]
[320312629,1711285223230,584.45484268,0.00017636,2]
[320312630,1711285223252,1519.62515732,0.00017636,2]
[320312631,1711285409155,197.0,0.00017426,2]
[320312632,1711285461776,283.37484268,0.00017399,2]
[320312633,1711285461798,923.30515732,0.00017399,2]
[320312634,1711285491201,500.0,0.00017321,2]
[320312635,1711285491241,576.69484268,0.00017321,2]
[320312636,1711285491263,423.30515732,0.00017321,2]
[320312637,1711285505384,150.0,0.000162,2]
[320312638,1711285505733,150.0,0.0001629,2]
[320312639,1711285506049,150.0,0.0001638,2]
[320312640,1711285506393,150.0,0.0001647,2]
[320312641,1711285506720,150.0,0.0001656,2]
[320312642,1711285507229,150.0,0.0001665,2]
[320312643,1711285507554,150.0,0.0001674,2]
[320312644,1711285507938,150.0,0.0001683,2]
[320312645,1711285508316,150.0,0.0001692,2]
[320312646,1711285508650,150.0,0.0001701,2]
[320312647,1711285508992,76.69484268,0.000171,2]
[320312648,1711285509014,73.30515732,0.000171,2]
[320312649,1711285509337,150.0,0.0001719,2]
[320312650,1711285509677,150.0,0.0001728,2]
[320312651,1711285510004,150.0,0.0001737,2]
[320312652,1711285510337,150.0,0.0001746,2]
[320312653,1711285510677,150.0,0.0001755,2]
[320312654,1711285511097,150.0,0.0001764,2]
[320312655,1711285511423,150.0,0.0001773,2]
[320312656,1711285512026,150.0,0.0001782,2]
[320312657,1711285515058,150.0,0.000162,2]
[320312658,1711285515410,150.0,0.00016425,2]
[320312659,1711285515769,150.0,0.0001665,2]
[320312660,1711285516270,150.0,0.00016875,2]
[320312661,1711285516413,126.69484268,0.000171,2]
[320312662,1711285523427,150.0,0.000162,2]
[320312663,1711285523815,150.0,0.000164,2]
[320312664,1711285524155,150.0,0.000166,2]
[320312665,1711285524479,150.0,0.000168,2]
[320312666,1711285524782,150.0,0.00017,2]
[320312667,1711285528554,150.0,0.000162,2]
[320312668,1711285538491,150.0,0.000162,2]
[320312669,1711285538864,150.0,0.0001656,2]
[320312670,1711285539186,150.0,0.0001692,2]
[320312671,1711285543797,150.0,0.000162,2]
[320312672,1711285543881,150.0,0.00016425,2]
[320312673,1711285544124,150.0,0.0001665,2]
[320312674,1711285544449,150.0,0.00016875,2]
[320312764,1711285548083,291.38059289,0.000162,2]
[320312905,1711285574892,200.0,0.00016939,2]
[320312906,1711285580376,250.0,0.0001698,2]
[320312907,1711285586601,204.38,0.00016945,2]
[320312943,1711285614287,534.08,0.0001694,2]
[320312987,1711285746137,-155.0,0.0001709,2]
[320312988,1711285746161,-929.58740066,0.00017091,2]
[320312989,1711285746184,-277.33614309,0.00017092,2]
[320312990,1711285746209,-23.30515732,0.000171,2]
[320312991,1711285746234,-150.0,0.000171,2]
[320312992,1711285746260,-150.0,0.000172,2]
[320312993,1711285746285,-150.0,0.0001728,2]
[320312994,1711285746308,-150.0,0.00017325,2]
[320312995,1711285746331,-150.0,0.00017325,2]
[320312996,1711285746356,-150.0,0.000174,2]
[320312997,1711285746383,-150.0,0.0001755,2]
[320312998,1711285746406,-150.0,0.0001755,2]
[320312999,1711285746431,-150.0,0.000176,2]
[320313000,1711285746456,-150.0,0.0001764,2]
[320313001,1711285746480,-150.0,0.00017775,2]
[320313002,1711285746503,-150.0,0.00017775,2]
[320313003,1711285746528,-150.0,0.000178,2]
[320313004,1711285746551,-1577.82701751,0.00017854,2]
[320313005,1711285746576,-1000.0,0.00017869,2]
[320313006,1711285746599,-300.0,0.00017897,2]
[320313007,1711285746623,-786.94428142,0.00017898,2]
[320313008,1711285746723,307.61,0.00015012,2]
[320313009,1711285816295,-307.61,0.00017276,2]
[320313010,1711285816320,-3027.98371858,0.00017898,2]
[320313011,1711285816344,-2664.40628142,0.00017898,2]
[320313018,1711285831843,-280.706949,0.00017808,2]
[320313019,1711285831854,-484.31503574,0.00017897,2]
[320313020,1711285831864,-8972.16603711,0.00017898,2]
[320313021,1711285831874,-1793.41676688,0.00017898,2]
[320313022,1711285831884,-704.49585276,0.00017899,2]
[320313023,1711285831894,-178.24201493,0.00017899,2]
[320313024,1711285831904,-184.22823383,0.00017899,2]
[320313025,1711285831914,-2062.14442834,0.00017899,2]
[320313026,1711285831923,-150.0,0.0001791,2]
[320313027,1711285831932,-584.60942361,0.00017981,2]
[320313028,1711285831942,-433.83896826,0.00017981,2]
[320313029,1711285831952,-368.63836516,0.00017981,2]
[320313030,1711285831962,-282.93,0.00017988,3]
[320313031,1711285831971,-164.62650338,0.00017988,2]
[320313032,1711285831980,-1016.72122733,0.00017996,2]
[320313033,1711285831989,-446.37100814,0.00017996,2]
[320313034,1711285831998,-737.56434103,0.00017996,2]
[320313035,1711285832008,-1225.98128707,0.00017996,2]
[320313038,1711285832017,-784.18185859,0.00017996,2]
[320313041,1711285832026,-1701.13986877,0.00017996,2]
[320313045,1711285832036,-2963.15971193,0.00017996,2]
[320313048,1711285832045,-1726.62174793,0.00017996,2]
[320313051,1711285832058,-355.23325207,0.00017996,2]
[320313054,1711285832068,-306.80547855,0.00017996,2]
[320313057,1711285832078,-276.09446912,0.00017996,2]
[320313060,1711285832088,-1000.0,0.00017996,2]
[320313063,1711285832098,-324.21793367,0.00017997,5]
[320313066,1711285832107,-2489.17043939,0.00017997,2]
[320313069,1711285832120,-658.19,0.00017997,2]
[320313071,1711285832132,-457.97529009,0.00017997,2]
[320313073,1711285832142,-229.27569004,0.00017998,2]
[320313075,1711285832153,-562.43544538,0.00017998,2]
[320313077,1711285832165,-1146.64309624,0.00017998,2]
[320313096,1711285837651,-3523.14131305,0.00017998,2]
[320313098,1711285837663,-1974.308,0.00017998,2]
[320313109,1711285837764,-21836.4543151,0.00017998,2]
[320313112,1711285837820,-5546.91659702,0.00017998,2]
[320313113,1711285837910,-647.40616432,0.00017998,2]
[320313114,1711285837937,-42648.71188463,0.00017998,2]
[320313303,1711285839793,-269.0874302,0.00017998,2]
[320313304,1711285839805,-682.00971396,0.00017998,2]